bitfinex-derivatives/quotes_SOLF0:USTF0_20250125
["timestamp","ask_amount","ask_price","bid_price","bid_amount"]
[1737828533752,0.02667824,258.47,258.4,0.02497477]
[1737828533953,0.02667824,258.47,258.4,0.73561912]
[1737828534748,0.02667824,258.47,258.41,0.71060863]
[1737828534947,0.02667824,258.47,258.4,0.7355834]
[1737828535152,0.02667824,258.47,258.41,0.71060863]
[1737828535453,0.02667824,258.47,258.4,0.02497477]
[1737828535753,0.02667824,258.47,258.4,0.73555906]
[1737828536653,0.02667824,258.47,258.41,0.71059964]
[1737828536850,0.02667824,258.47,258.42,0.71059964]
[1737828537051,0.02667824,258.47,258.43,0.71059964]
[1737828537246,0.02667824,258.47,258.44,0.71059964]
[1737828537553,0.02667824,258.47,258.45,0.71059964]
[1737828537854,0.02667824,258.47,258.46,0.71059964]
[1737828538153,0.02667824,258.47,258.4,0.02497477]
[1737828538351,0.02667824,258.47,258.4,0.73559502]
[1737828541756,0.02667824,258.47,258.4,9.87839468]
[1737828542054,0.02667824,258.47,258.41,0.71062025]
[1737828542250,2.5928,258.57,258.44,9.14279966]
[1737828542554,2.5928,258.57,258.45,0.71062025]
[1737828542754,2.5928,258.57,258.4,9.14279966]
[1737828542755,2.5928,258.57,258.46,0.71062025]
[1737828542948,2.5928,258.57,258.4,9.14279966]
[1737828543356,2.5928,258.57,258.41,0.7106215]
[1737828543657,0.02485235,258.51,258.46,0.02973903]
[1737828546655,0.02485235,258.51,258.46,0.74032692]
[1737828546959,0.02485235,258.51,258.47,0.71058789]
[1737828547159,0.02485235,258.51,258.46,0.02973903]
[1737828547956,9.14279966,258.66,258.48,9.14279966]
[1737828548151,2.5759,258.69,258.53,9.14279966]
[1737828548653,9.14279966,258.66,258.5,2.82]
[1737828549258,0.02576685,258.61,258.5,2.82]
[1737828550058,0.02576685,258.61,258.45,9.14279966]
[1737828550260,9.14279966,258.62,258.46,0.71052216]
[1737828550457,0.02951287,258.56,258.5,0.02484976]
[1737828551464,1.30431287,258.56,258.5,0.02484976]
[1737828552862,9.14279966,258.54,258.5,0.02484976]
[1737828553164,1.30431287,258.56,258.5,0.02484976]
[1737828553966,0.02951287,258.56,258.5,0.02484976]
[1737828554766,2.6284,258.7,258.53,9.14279966]
[1737828555167,3.8919,258.7,258.53,9.14279966]
[1737828555863,9.14279966,258.67,258.51,4.122]
[1737828556075,0.02916149,258.64,258.59,0.02942299]
[1737828566972,0.02916149,258.64,258.49,9.14279966]
[1737828567168,9.14279966,258.63,258.45,9.14279966]
[1737828567371,3.8919,258.7,258.4,2.5534]
[1737828567372,9.14279966,258.59,258.41,9.14279966]
[1737828567573,9.14279966,258.55,258.4,2.5534]
[1737828568274,0.02719765,258.5,258.45,0.0292886]
[1737828569979,0.02719765,258.5,258.45,9.17208826]
[1737828570172,2.5675,258.58,258.49,9.14279966]
[1737828570571,2.5675,258.58,258.45,9.14279966]
[1737828571171,2.5675,258.58,258.45,9.10515363]
[1737828571373,0.02938694,258.54,258.49,0.02691992]
[1737828580684,0.02938694,258.54,258.49,9.16971958]
[1737828580887,8.694e-05,258.54,258.53,3.8686]
[1737828581389,8.694e-05,258.54,258.53,13.01139966]
[1737828581591,1.2262,258.67,258.66,3.8666]
[1737828582993,0.02911187,258.69,258.64,0.02788267]
[1737828583193,1.187e-05,258.69,258.68,3.8663]
[1737828583485,5.32724886,258.76,258.65,11.96279966]
[1737828583693,5.32724886,258.76,258.75,3.8653]
[1737828584088,287.33168643,258.84,258.71,9.14279966]
[1737828584089,3.9002,258.91,258.71,9.14279966]
[1737828584786,0.02473223,258.82,258.77,0.0268577]
[1737828585190,0.02473223,258.82,258.81,3.8644]
[1737828587795,3.9002,258.91,258.9,3.863]
[1737828588095,2.6024,258.91,258.9,3.863]
[1737828588792,0.02921636,258.93,258.88,0.02758547]
[1737828589091,0.02921636,258.93,258.65,1.3448]
[1737828589092,14.58926385,258.89,258.68,14.58926385]
[1737828589299,14.58926385,258.83,258.58,14.58926385]
[1737828589489,14.58926385,258.78,258.76,3.8651]
[1737828589799,14.58926385,258.78,258.6,2.88]
[1737828590399,14.58926385,258.78,258.76,3.865]
[1737828591798,14.58926385,258.78,258.74,0.02884424]
[1737828592691,14.58926385,258.78,258.61,1.2568]
[1737828592900,14.58926385,258.73,258.61,1.2568]
[1737828594003,14.58926385,258.73,258.72,3.8657]
[1737828596497,0.02704438,258.75,258.73,3.8655]
[1737828603900,14.58926385,258.86,258.85,3.8638]
[1737828604405,1.3523,258.88,258.72,2.84]
[1737828604608,14.58926385,258.91,258.86,3.8636]
[1737828605104,14.61877749,258.91,258.86,0.02721215]
[1737828606004,14.61877749,258.91,258.89,3.8631]
[1737828606005,0.02951364,258.91,258.89,3.8631]
[1737828608413,0.02951364,258.91,258.86,0.02721215]
[1737828610506,0.02951364,258.91,258.89,3.8632]
[1737828614313,0.02951364,258.91,258.76,22.31936385]
[1737828615513,0.02951364,258.91,258.81,0.02575276]
[1737828616215,0.02951364,258.91,258.9,3.863]
[1737828624927,1.3246,259.02,259.01,3.8614]
[1737828625424,9.11427114,259.06,259.01,3.8614]
[1737828625624,9.11427114,259.06,259.02,3.8612]
[1737828626326,9.11427114,259.06,259.03,3.8611]
[1737828627225,9.11427114,259.06,259.04,3.8609]
[1737828627428,9.11427114,259.06,259.01,0.02858778]
[1737828627622,9.11427114,259.02,259.01,0.02858778]
[1737828627820,9.11427114,259.02,258.9,3.863]
[1737828628023,9.11427114,259.02,258.85,10.35527114]
[1737828628634,9.11427114,259.02,258.98,3.8618]
[1737828628931,9.11427114,259.02,258.97,0.02673379]
[1737828629132,9.11427114,259.02,258.9,3.863]
[1737828629333,9.11427114,259.02,258.97,0.02475875]
[1737828629634,0.02489373,258.99,258.85,10.35527114]
[1737828629827,0.02489373,258.99,258.98,3.8617]
[1737828631736,0.02489373,258.99,258.96,0.02808386]
[1737828632736,0.02489373,258.99,258.96,3.89018386]
[1737828633733,9.11427114,258.98,258.96,0.02808386]
[1737828634536,0.02489373,258.99,258.96,0.02808386]
[1737828635440,0.02489373,258.99,258.98,3.8618]
[1737828636238,0.02489373,258.99,258.96,0.02808386]
[1737828636841,3.88659373,258.99,258.96,0.02808386]
[1737828637937,0.02489373,258.99,258.96,0.02808386]
[1737828638539,9.11427114,258.98,258.8,9.11427114]
[1737828639740,0.02952207,258.92,258.86,0.02747658]
[1737828640636,0.02952207,258.92,258.91,3.8629]
[1737828642538,0.02952207,258.92,258.86,0.02747658]
[1737828643941,0.02952207,258.92,258.91,3.8629]
[1737828646435,0.02952207,258.92,258.87,3.8634]
[1737828646639,0.02952207,258.92,258.86,0.02747658]
[1737828648144,0.02952207,258.92,258.9,3.863]
[1737828648640,0.02952207,258.92,258.86,0.02747658]
[1737828648948,2.207e-05,258.92,258.91,3.8629]
[1737828665851,1.2264,259.08,258.89,9.1088839]
[1737828666050,1.2264,259.08,258.95,9.1088839]
[1737828666246,2.91507752,259.07,258.98,3.8617]
[1737828666546,2.91507752,259.07,258.95,9.1088839]
[1737828667056,0.02669645,259.04,259.03,3.8611]
[1737828667252,2.91507752,259.06,258.95,9.1088839]
[1737828667550,2.91507752,259.04,259.03,3.8611]
[1737828668753,2.91507752,259.04,259.01,0.02965273]
[1737828668754,0.02818523,259.06,259.04,3.8609]
[1737828669451,0.02818523,259.06,259.05,3.8608]
[1737828673259,8.523e-05,259.06,259.05,3.8608]
[1737828676560,11.59805958,259.06,259.05,3.8608]
[1737828676963,1.2578,259.19,259.03,9.1088839]
[1737828677161,0.96495381,259.18,259.09,7.86353967]
[1737828677362,0.96495381,259.17,259.02,1.2928]
[1737828677562,4.79586349,259.11,259.09,9.1088839]
[1737828677965,4.79586349,259.11,259.1,3.86]
[1737828678558,4.79586349,259.12,259.11,3.8599]
[1737828679466,0.02493399,259.13,259.12,3.8597]
[1737828680063,0.02493399,259.13,259.11,3.8599]
[1737828681265,0.02493399,259.13,259.07,3.88518393]
[1737828681566,0.02493399,259.13,259.07,0.02478393]
[1737828682068,0.02493399,259.13,259.1,3.86]
[1737828683762,0.02493399,259.13,259.07,0.02478393]
[1737828683964,1.3075,259.35,259.12,9.1088839]
[1737828684168,0.96464344,259.34,259.22,9.1088839]
[1737828684467,0.96464344,259.33,259.22,9.1088839]
[1737828684766,0.96464344,259.32,259.22,9.1088839]
[1737828684962,6.63474886,259.35,259.28,3.8573]
[1737828685261,0.02525114,259.3,259.28,3.8573]
[1737828685465,0.02525114,259.3,259.24,0.02451913]
[1737828685766,0.02525114,259.3,259.26,3.8576]
[1737828685960,0.02525114,259.3,259.24,0.02451913]
[1737828686163,0.02525114,259.3,259.27,3.8574]
[1737828687966,0.02525114,259.3,259.24,0.02451913]
[1737828688166,0.02525114,259.3,259.28,3.8572]
[1737828689469,1.3075,259.35,259.26,9.1088839]
[1737828690669,0.02846379,259.33,259.26,9.1088839]
[1737828691969,0.02846379,259.33,259.31,3.8569]
[1737828693468,0.02846379,259.33,259.29,0.02798541]
[1737828694274,3.857,259.31,259.22,3.8582]
[1737828694574,3.857,259.31,259.18,9.1088839]
[1737828695274,2.5371,259.32,259.18,9.1088839]
[1737828695469,0.02514701,259.27,259.22,0.02916132]
[1737828697876,0.02514701,259.27,259.22,3.88726132]
[1737828698776,0.02514701,259.27,259.1,9.1088839]
[1737828698979,9.1088839,259.24,259.06,9.1088839]
[1737828699176,9.1088839,259.28,259.06,9.1088839]
[1737828699474,9.1088839,259.28,259.1,9.1088839]
[1737828699875,3.8573,259.29,259.14,9.1088839]
[1737828700077,0.0246248,259.22,259.16,0.02949212]
[1737828701378,0.0246248,259.22,259.2,3.8585]
[1737828702880,0.0246248,259.22,259.16,0.02949212]
[1737828703477,0.0246248,259.22,259.2,3.8585]
[1737828704481,0.0246248,259.22,259.16,3.88859212]
[1737828704777,0.0246248,259.22,259.16,0.02949212]
[1737828705182,0.0246248,259.22,259.17,3.859]
[1737828705984,0.0246248,259.22,259.16,0.02949212]
[1737828706582,3.8830248,259.22,259.16,0.02949212]
[1737828706880,0.0246248,259.22,259.16,0.02949212]
[1737828708175,0.0246248,259.22,259.16,3.88859212]
[1737828708377,0.0246248,259.22,259.16,0.02949212]
[1737828708686,9.1088839,259.2,259.02,9.1088839]
[1737828708883,3.8591,259.17,259.02,9.1088839]
[1737828709181,2.6296,259.19,259.02,9.1088839]
[1737828709386,3.8591,259.17,259.02,9.1088839]
[1737828709586,0.02589783,259.13,259.08,0.02945307]
[1737828710081,0.02589783,259.13,259.09,3.8602]
[1737828710282,0.02589783,259.13,259.08,0.02945307]
[1737828711393,9.1088839,259.12,259.08,0.02945307]
[1737828712288,9.1088839,259.12,259.09,3.8602]
[1737828712591,0.02589783,259.13,259.08,0.02945307]
[1737828713693,0.02589783,259.13,259.1,3.86]
[1737828714289,0.02589783,259.13,259.09,3.8602]
[1737828714584,0.02589783,259.13,259.08,0.02945307]
[1737828714886,0.02589783,259.13,259.11,3.8599]
[1737828720196,0.02589783,259.13,259.1,3.86]
[1737828720390,0.02589783,259.13,259.08,0.02945307]
[1737828723490,0.02589783,259.13,259.08,3.88975307]
[1737828723893,9.1088839,259.09,258.91,9.1088839]
[1737828724794,3.8605,259.08,258.91,9.1088839]
[1737828724995,0.02624862,259.03,258.97,0.02503888]
[1737828725391,0.02624862,259.03,258.99,3.8615]
[1737828726397,0.02624862,259.03,259.0,3.8615]
[1737828727999,0.02624862,259.03,259.01,3.8613]
[1737828730994,2.5401,259.15,259.11,3.8598]
[1737828731199,9.1088839,259.23,259.03,9.1088839]
[1737828731499,3.8585,259.21,259.03,9.1088839]
[1737828732194,0.02566192,259.15,259.09,0.02462371]
[1737828732696,3.8597,259.12,259.09,0.02462371]
[1737828733000,2.5341,259.14,259.09,0.02462371]
[1737828733195,3.8599,259.11,259.09,0.02462371]
[1737828733400,3.8829,259.14,259.09,0.02462371]
[1737828734600,7.7424,259.14,259.09,0.02462371]
[1737828734994,3.8829,259.14,259.09,0.02462371]
[1737828735803,2.5341,259.14,259.11,3.8599]
[1737828736299,0.02566192,259.15,259.09,0.02462371]
[1737828736500,0.02566192,259.15,259.1,3.8599]
[1737828736699,0.02566192,259.15,259.09,0.02462371]
[1737828737192,3.88496192,259.15,259.09,3.88472371]
[1737828737696,9.13454582,259.15,259.09,0.02462371]
[1737828738001,3.8596,259.13,259.09,0.02462371]
[1737828738801,3.8605,259.07,259.01,3.8613]
[1737828739502,1.3002,259.1,259.02,3.8612]
[1737828739708,1.3002,259.1,258.94,1.3068]
[1737828739899,1.3002,259.1,258.91,9.1088839]
[1737828739900,0.02845328,259.09,259.03,0.02600922]
[1737828740201,9.1088839,259.07,259.03,0.02600922]
[1737828740499,0.02562554,259.09,259.05,3.8607]
[1737828740803,0.02562554,259.09,259.03,0.02600922]
[1737828740998,0.02562554,259.09,259.07,3.8604]
[1737828741400,9.1088839,259.19,259.03,9.13489312]
[1737828741605,9.1088839,259.19,259.03,9.1088839]
[1737828741907,1.323,259.25,259.07,9.1088839]
[1737828742397,1.323,259.25,259.19,3.8587]
[1737828742705,1.35079138,259.25,259.19,3.8587]
[1737828742905,1.35079138,259.25,259.19,3.88677577]
[1737828743204,1.35079138,259.25,259.19,0.02807577]
[1737828744200,0.02779138,259.25,259.19,0.02807577]
[1737828744402,0.02779138,259.25,259.23,3.858]
[1737828745496,0.02779138,259.25,259.19,0.02807577]
[1737828745703,0.02779138,259.25,259.21,3.8584]
[1737828745898,0.02779138,259.25,259.19,0.02807577]
[1737828746104,0.02779138,259.25,259.23,3.858]
[1737828747105,17.19784394,259.36,259.29,3.8571]
[1737828747106,2.6448,259.36,259.29,3.8571]
[1737828747804,1.345,259.36,259.31,3.8569]
[1737828748105,1.37353331,259.36,259.31,3.88600256]
[1737828748701,0.02853331,259.36,259.31,0.02910256]
[1737828749608,0.02853331,259.36,259.33,3.8566]
[1737828750006,0.02853331,259.36,259.31,0.02910256]
[1737828751006,3.8564,259.35,259.31,0.02910256]
[1737828751207,0.02853331,259.36,259.31,0.02910256]
[1737828752901,3.8568,259.32,259.31,0.02910256]
[1737828753100,0.02853331,259.36,259.31,0.02910256]
[1737828753609,3.88473331,259.36,259.31,0.02910256]
[1737828754111,0.02853331,259.36,259.31,0.02910256]
[1737828755607,3.8566,259.34,259.31,0.02910256]
[1737828755807,0.02853331,259.36,259.31,0.02910256]
[1737828756307,0.02853331,259.36,259.31,3.88600256]
[1737828756507,0.02853331,259.36,259.31,0.02910256]
[1737828756909,3.8567,259.33,259.31,0.02910256]
[1737828757812,0.02853331,259.36,259.31,0.02910256]
[1737828758009,3.8564,259.35,259.31,0.02910256]
[1737828758312,0.02853331,259.36,259.31,0.02910256]
[1737828758706,0.02853331,259.36,259.32,3.8567]
[1737828759511,0.02853331,259.36,259.31,0.02910256]
[1737828760216,0.02853331,259.36,259.33,3.8565]
[1737828760414,0.02853331,259.36,259.31,0.02910256]
[1737828761316,3.8566,259.34,259.31,0.02910256]
[1737828762115,3.88483331,259.36,259.31,3.88600256]
[1737828762415,0.02853331,259.36,259.31,0.02910256]
[1737828762807,0.02853331,259.36,259.32,3.8567]
[1737828763016,0.02853331,259.36,259.31,0.02910256]
[1737828763416,0.02853331,259.36,259.31,3.88590256]
[1737828764021,0.02853331,259.36,259.32,3.8567]
[1737828764210,0.02853331,259.36,259.31,0.02910256]
[1737828764910,0.02853331,259.36,259.33,3.8566]
[1737828766016,0.02853331,259.36,259.31,0.02910256]
[1737828766415,3.8568,259.32,259.17,9.08421409]
[1737828766616,9.08421409,259.35,259.23,3.858]
[1737828766920,3.8569,259.32,259.17,9.08421409]
[1737828767123,3.8569,259.32,259.26,3.8576]
[1737828767512,3.88129331,259.32,259.26,0.0249034]
[1737828767716,3.88129331,259.32,259.27,3.8574]
[1737828767917,0.02439331,259.32,259.26,0.0249034]
[1737828768114,3.8571,259.3,259.26,0.0249034]
[1737828768914,0.02439331,259.32,259.26,0.0249034]
[1737828769514,0.02439331,259.32,259.27,3.8574]
[1737828769719,0.02439331,259.32,259.26,0.0249034]
[1737828772029,9.1086074,259.32,259.26,0.0249034]
[1737828772225,3.8572,259.31,259.26,0.0249034]
[1737828772522,9.1086074,259.32,259.26,0.0249034]
[1737828773930,3.8577,259.27,259.26,0.0249034]
[1737828774429,9.1086074,259.32,259.26,0.0249034]
[1737828774627,3.8575,259.29,259.26,0.0249034]
[1737828775128,9.1086074,259.32,259.26,0.0249034]
[1737828775730,0.02439331,259.32,259.26,0.0249034]
[1737828776620,0.02439331,259.32,259.26,3.8827034]
[1737828776821,0.02439331,259.32,259.26,0.0249034]
[1737828777224,3.88119331,259.32,259.28,3.8573]
[1737828777426,0.02439331,259.32,259.26,0.0249034]
[1737828777827,0.02439331,259.32,259.31,3.8569]
[1737828778530,9.331e-05,259.32,259.31,3.8569]
[1737828779832,9.331e-05,259.32,259.29,3.8571]
[1737828780332,9.331e-05,259.32,259.28,3.8573]
[1737828780734,9.331e-05,259.32,259.26,1.3660034]
[1737828780937,9.331e-05,259.32,259.3,3.857]
[1737828781127,9.331e-05,259.32,259.26,0.0249034]
[1737828781326,3.857,259.31,259.26,0.0249034]
[1737828781533,9.331e-05,259.32,259.26,0.0249034]
[1737828782527,9.331e-05,259.32,259.29,3.8571]
[1737828782928,9.331e-05,259.32,259.26,0.0249034]
[1737828783129,9.331e-05,259.32,259.3,3.857]
[1737828785235,9.331e-05,259.32,259.28,3.8577]
[1737828785444,9.331e-05,259.32,259.26,0.0249034]
[1737828785934,9.331e-05,259.32,259.28,3.8577]
[1737828786139,9.331e-05,259.32,259.26,0.0249034]
[1737828786535,9.331e-05,259.32,259.28,3.8577]
[1737828786735,9.331e-05,259.32,259.26,0.0249034]
[1737828786941,9.331e-05,259.32,259.3,3.8574]
[1737828787639,9.331e-05,259.32,259.31,3.8573]
[1737828789146,9.331e-05,259.32,259.29,3.8575]
[1737828789445,9.331e-05,259.32,259.26,0.0249034]
[1737828790237,3.8572,259.3,259.26,0.0249034]
[1737828790442,9.331e-05,259.32,259.26,0.0249034]
[1737828793339,3.8575,259.28,259.26,0.0249034]
[1737828793634,3.8575,259.27,259.26,0.0249034]
[1737828793835,9.08421409,259.29,259.19,3.8586]
[1737828794746,9.08421409,259.29,259.2,3.8585]
[1737828794941,0.02761676,259.27,259.21,0.02609136]
[1737828797746,0.02761676,259.27,259.26,3.8577]
[1737828797942,0.02761676,259.27,259.21,0.02609136]
[1737828798146,0.02761676,259.27,259.22,3.8581]
[1737828798347,0.02761676,259.27,259.21,0.02609136]
[1737828800246,3.8577,259.26,259.21,0.02609136]
[1737828800746,3.8583,259.22,259.21,0.02609136]
[1737828803646,3.8585,259.23,259.21,0.02609136]
[1737828803843,9.08421409,259.25,258.85,82.093884]
[1737828804049,9.08421409,259.25,259.07,10.33571409]
[1737828804251,3.8587,259.22,259.16,3.8595]
[1737828805055,3.8588,259.21,259.16,0.02753127]
[1737828805440,0.02626873,259.22,259.16,0.02753127]
[1737828805645,3.88496873,259.22,259.16,0.02753127]
[1737828806751,0.02626873,259.22,259.16,0.02753127]
[1737828807253,3.8592,259.19,259.16,0.02753127]
[1737828807452,0.02626873,259.22,259.16,0.02753127]
[1737828808851,3.88466873,259.22,259.17,3.859]
[1737828809153,0.02626873,259.22,259.16,0.02753127]
[1737828810047,0.02626873,259.22,259.2,3.8585]
[1737828811350,0.02626873,259.22,259.16,0.02753127]
[1737828811553,0.02626873,259.22,259.18,3.8588]
[1737828812146,0.02626873,259.22,259.16,0.02753127]
[1737828813654,0.02626873,259.22,259.16,3.88673127]
[1737828814550,0.02626873,259.22,259.16,0.02753127]
[1737828814551,9.08421409,259.21,259.16,0.02753127]
[1737828814747,0.02626873,259.22,259.16,0.02753127]
[1737828817560,3.8588,259.19,259.16,0.02753127]
[1737828817755,0.02626873,259.22,259.16,0.02753127]
[1737828819359,3.8589,259.18,259.16,0.02753127]
[1737828819560,0.02626873,259.22,259.16,0.02753127]
[1737828820862,3.8589,259.18,259.16,0.02753127]
[1737828824762,3.859,259.17,259.16,0.02753127]
[1737828824959,3.859,259.17,259.16,0.00286917]
[1737828828267,3.8608,259.05,258.96,9.08421409]
[1737828828464,9.08421409,259.14,258.97,1.2401]
[1737828828666,9.08421409,259.14,259.04,3.861]
[1737828828965,9.08421409,259.18,258.97,1.2401]
[1737828829265,3.8597,259.13,259.03,3.8611]
[1737828829464,0.02618636,259.1,259.05,0.02489761]
[1737828830163,3.88638636,259.1,259.05,0.02489761]
[1737828830467,0.02618636,259.1,259.05,0.02489761]
[1737828832067,0.02618636,259.1,259.05,3.88569761]
[1737828832671,0.02618636,259.1,259.05,0.02489761]
[1737828832970,0.02618636,259.1,259.06,3.8606]
[1737828833772,0.02618636,259.1,259.05,0.02489761]
[1737828833974,3.8602,259.09,259.05,0.02489761]
[1737828834363,3.8604,259.08,259.05,0.02489761]
[1737828836377,0.02618636,259.1,259.05,0.02489761]
[1737828836579,3.88638636,259.1,259.05,0.02489761]
[1737828836971,0.02618636,259.1,259.05,0.02489761]
[1737828838775,9.11040045,259.1,259.05,0.02489761]
[1737828838982,12.94481409,259.06,259.05,0.02489761]
[1737828839182,9.08421409,259.06,258.88,9.08421409]
[1737828839384,9.08421409,259.02,258.88,1.2534]
[1737828839978,9.08421409,258.98,258.88,1.2534]
[1737828840386,0.02710462,258.96,258.9,0.02910889]
[1737828840884,1.2571,259.13,258.92,9.08421409]
[1737828841183,1.2571,259.13,259.01,3.8613]
[1737828841383,9.08421409,259.1,258.93,2.8]
[1737828841883,0.02901688,259.04,258.99,0.02577454]
[1737828842383,0.02901688,259.04,259.01,3.8613]
[1737828842683,0.02901688,259.04,258.99,0.02577454]
[1737828843683,5.8300873,259.01,258.99,0.02577454]
[1737828843883,0.02901688,259.04,258.99,0.02577454]
[1737828844085,1.688e-05,259.04,259.01,5.8300873]
[1737828844278,1.688e-05,259.04,258.99,0.02577454]
[1737828844577,1.688e-05,259.04,259.02,3.8612]
[1737828847680,1.688e-05,259.04,258.99,0.02577454]
[1737828847888,5.83010418,259.04,258.99,0.02577454]
[1737828848078,5.8300873,259.01,258.99,0.02577454]
[1737828848387,9.6915873,259.01,258.99,0.02577454]
[1737828848684,5.8300873,259.01,258.9,1.236]
[1737828848884,5.8300873,258.95,258.88,5.8300873]
[1737828849788,3.862,258.98,258.83,9.11313568]
[1737828849978,0.02683927,258.94,258.89,0.02694066]
[1737828850684,9.11313568,258.92,258.89,0.02694066]
[1737828851083,9.11313568,258.92,258.77,1.2787]
[1737828851284,9.11313568,258.88,258.76,1.62539577]
[1737828851583,9.11313568,258.92,258.76,1.62539577]
[1737828851883,9.11313568,258.96,258.79,9.11313568]
[1737828852082,2.5825,258.97,258.85,0.02777073]
[1737828852391,0.02538788,258.9,258.86,3.8635]
[1737828852581,0.02538788,258.9,258.85,0.02777073]
[1737828855491,9.11313568,258.88,258.85,0.02777073]
[1737828855690,3.8636,258.87,258.85,0.02777073]
[1737828856293,9.11313568,258.88,258.76,1.62539577]
[1737828856492,9.11313568,258.83,258.76,1.62539577]
[1737828856885,1.3274,258.86,258.76,1.62539577]
[1737828857085,5.1912,258.86,258.76,1.62539577]
[1737828857284,1.3274,258.86,258.76,1.62539577]
[1737828857490,3.8644,258.82,258.78,0.02961909]
[1737828857692,9.11313568,258.83,258.78,0.02961909]
[1737828857990,12.97733568,258.83,258.78,0.02961909]
[1737828858392,9.11313568,258.83,258.78,0.02961909]
[1737828858592,0.0284065,258.84,258.78,0.02961909]
[1737828858793,3.8641,258.83,258.78,0.02961909]
[1737828858993,0.0284065,258.84,258.78,0.02961909]
[1737828859387,3.8645,258.81,258.78,0.02961909]
[1737828859594,9.11313568,258.83,258.78,0.02961909]
[1737828859996,3.8642,258.83,258.78,0.02961909]
[1737828860195,0.0284065,258.84,258.78,0.02961909]
[1737828860487,3.8645,258.81,258.78,0.02961909]
[1737828860688,9.11313568,258.83,258.78,0.02961909]
[1737828860893,0.0284065,258.84,258.78,0.02961909]
[1737828861197,3.8924065,258.84,258.78,0.02961909]
[1737828861499,0.0284065,258.84,258.78,0.02961909]
[1737828863197,3.8645,258.81,258.78,0.02961909]
[1737828863896,3.8642,258.83,258.78,0.02961909]
[1737828864501,3.8643,258.82,258.78,0.02961909]
[1737828864998,0.0284065,258.84,258.78,0.02961909]
[1737828865702,3.8646,258.8,258.78,0.02961909]
[1737828867406,3.8647,258.79,258.78,0.02961909]
[1737828867701,12.97783568,258.79,258.78,1.909e-05]
[1737828867898,9.11313568,258.79,258.76,1.62539577]
[1737828868100,9.11313568,258.79,258.63,1.2377]
[1737828868300,9.11313568,258.71,258.63,1.2377]
[1737828868603,9.11313568,258.71,258.62,4.13909672]
[1737828869104,3.8667,258.66,258.64,0.02805285]
[1737828870299,9.11313568,258.67,258.5,9.11313568]
[1737828870602,9.11313568,258.67,258.46,9.11313568]
[1737828870802,3.8677,258.59,258.51,3.8688]
[1737828871003,9.11313568,258.63,258.47,1.3447]
[1737828871303,9.11313568,258.67,258.47,1.3447]
[1737828871501,0.0269139,258.58,258.52,0.02729965]
[1737828871698,0.0269139,258.58,258.55,3.8682]
[1737828872302,0.0269139,258.58,258.52,0.02729965]
[1737828874205,3.8681,258.57,258.52,0.02729965]
[1737828874403,0.0269139,258.58,258.52,0.02729965]
[1737828875203,3.8685,258.54,258.52,0.02729965]
[1737828875404,9.11313568,258.55,258.37,2.6061]
[1737828875704,3.8695,258.49,258.43,3.87]
[1737828875903,9.11313568,258.51,258.43,3.87]
[1737828876602,0.02668782,258.5,258.44,0.0291247]
[1737828877904,0.02668782,258.5,258.47,3.8694]
[1737828878605,0.02668782,258.5,258.48,3.8693]
[1737828879007,0.02668782,258.5,258.45,3.8696]
[1737828879208,0.02668782,258.5,258.44,0.0291247]
[1737828879707,0.02668782,258.5,258.48,3.8692]
[1737828880304,1.2683,258.58,258.54,3.8684]
[1737828880502,9.11313568,258.63,258.54,3.8684]
[1737828881407,9.11313568,258.63,258.56,0.02818879]
[1737828881408,3.8677,258.59,258.56,0.02818879]
[1737828881607,3.8677,258.59,258.52,3.8686]
[1737828881907,3.8677,258.59,258.55,0.02962139]
[1737828882298,0.02644237,258.6,258.55,0.02962139]
[1737828882505,0.02644237,258.6,258.29,9.11313568]
[1737828882506,9.11313568,258.58,258.29,9.11313568]
[1737828882809,9.11313568,258.59,258.31,1.3387]
[1737828882810,9.11313568,258.46,258.31,1.3387]
[1737828883707,0.02518465,258.41,258.36,3.89818049]
[1737828884509,0.02518465,258.41,258.36,0.02708049]
[1737828884808,0.02518465,258.41,258.37,3.871]
[1737828885307,12.98403568,258.38,258.36,0.02708049]
[1737828887713,3.8712,258.36,258.28,3.8723]
[1737828887915,9.11313568,258.34,258.22,1.2434]
[1737828888315,3.8718,258.32,258.17,10.34963568]
[1737828888514,3.8718,258.32,258.18,0.71133098]
[1737828888712,9.11313568,258.34,258.18,0.71133098]
[1737828889018,0.02637803,258.28,258.26,3.8725]
[1737828889412,0.02637803,258.28,258.24,3.8728]
[1737828890013,0.02637803,258.28,258.17,1.2365]
[1737828890921,9.11313568,258.26,258.17,1.2365]
[1737828891220,9.11313568,258.26,258.14,4.29226437]
[1737828891421,3.8728,258.25,258.18,3.8738]
[1737828891622,0.02556545,258.23,258.18,3.8738]
[1737828892319,0.02556545,258.23,258.15,3.8741]